Cogmind - Beta 14 @@@ ROGUE MODE // 2025.03.14 @ 13:26:15 Player: Lava Result: Destroyed by D-53 Grenadier with Mini Grenade Launcher Performance ------------- Evolutions (0) 0 Regions Visited (4) 800 Robots Destroyed (24) 120 Value Destroyed (468) 468 Prototype IDs (23) 460 Alien Tech Used (0) 0 Bonus (300) 300 TOTAL SCORE: 2148 Bonus ------- Aligned with FarCom 300 Cogmind --------- Core Integrity 0/250 Matter 192/300 Energy 100/100 System Corruption 0% Temperature Cool (6) Movement Treading (225) Ox1 Location -9/Mines Parts ------- > --- POWER (1) -------- (None) > --- PROPULSION (2) --- Advanced Treads > --- UTILITY (2) ------ High-capacity Storage Unit Visual Processing Unit > --- WEAPON (2) ------- Light Assault Rifle Light Cannon > --- INVENTORY (20) --- Light Ion Engine Light Treads Light Treads Aluminum Leg Aluminum Leg Medium Matter Pod (100) Structural Scanner Sensor Array Signal Interpreter Improved Terrain Scanner Hacking Suite Small Laser Small Laser Beam Cannon Beam Cannon Light Assault Rifle Light Cannon Hammer Longsword +1 Peak State ------------ > --- POWER ------------ Light Ion Engine > --- PROPULSION ------- Advanced Treads Advanced Treads > --- UTILITY ---------- High-capacity Storage Unit Visual Processing Unit > --- WEAPON ----------- Light Assault Rifle Rocket Launcher > --- INVENTORY -------- Light Ion Engine Light Treads Light Treads Aluminum Leg Aluminum Leg Medium Matter Pod Structural Scanner Sensor Array Signal Interpreter Improved Terrain Scanner Hacking Suite Small Laser Small Laser Beam Cannon Beam Cannon Light Assault Rifle Light Cannon Light Cannon Hammer Longsword +1 [Rating: 16] Favorites ----------- Power Light Ion Engine Engine Light Ion Engine Propulsion Light Treads Treads Light Treads Utility High-capacity Storage Unit Storage High-capacity Storage Unit Processor Visual Processing Unit Weapon Light Cannon Energy Gun EM Pulse Gun Energy Cannon Beam Cannon Ballistic Gun Light Assault Rifle Ballistic Cannon Light Cannon Launcher Rocket Launcher Impact Weapon Hammer Build | -11 -10 -10 -10 -9 ------- Run | Yrd Mat Min Exi Min Slots Evolved . | . . . . . Power . | . . . . . Propulsion . | . . . . . Utility . | . . . . . Weapon . | . . . . . Parts Attached 36 | 7 23 4 . 2 Power 4 | 1 2 1 . . Engine 4 | 1 2 1 . . Core . | . . . . . Reactor . | . . . . . Propulsion 8 | 2 4 2 . . Treads 8 | 2 4 2 . . Leg . | . . . . . Wheel . | . . . . . Hover . | . . . . . Flight . | . . . . . Utility 5 | 1 4 . . . Device . | . . . . . Storage 4 | 1 3 . . . Processor 1 | . 1 . . . Hackware . | . . . . . Protection . | . . . . . Artifact . | . . . . . Weapon 19 | 3 13 1 . 2 Energy Gun 5 | 3 2 . . . Energy Cannon 6 | . 6 . . . Ballistic Gun 2 | . 1 1 . . Ballistic Cannon 2 | . 1 . . 1 Launcher 1 | . . . . 1 Special Weapon . | . . . . . Impact Weapon 3 | . 3 . . . Slashing Weapon . | . . . . . Piercing Weapon . | . . . . . Special Melee Weapon . | . . . . . Unidentified Prototypes . | . . . . . Parts Lost 3 | . . . . 3 Power 1 | . . . . 1 Propulsion 1 | . . . . 1 Utility . | . . . . . Weapon 1 | . . . . 1 Highest Loss Streak 3 | . . . . 3 To Critical Strikes . | . . . . . Average Slot Usage (%) 96 | . 95 97 100 99 Engine 13 | . 14 14 14 13 Treads 28 | . 28 28 28 28 Storage 14 | . 14 14 14 14 Processor 11 | . 9 14 14 14 Energy Gun 5 | . 9 . . . Energy Cannon 6 | . 12 . . . Ballistic Gun 6 | . 1 9 14 14 Ballistic Cannon 7 | . 1 14 14 11 Impact Weapon 1 | . 2 1 . . Peak Build Rating 16 | 6 10 14 15 16 Average Rating 11 | 4 8 13 14 14 On Entrance 8 | . 6 9 14 15 Naked Turns . | . . . . . Heaviest Build 51 | 13 51 48 47 47 Greatest Support 44 | 40 40 44 44 44 Greatest Overweight (x) 1 | . 1 1 1 1 Average Overweight (x) . | . . 1 1 1 Largest Inventory Capacity 20 | 8 20 20 20 20 Average Capacity 19 | 7 19 20 20 20 Most Carried 20 | 7 20 20 20 20 Average Carried 18 | 4 17 19 19 19 Final Capacity 20 | 8 20 20 20 20 Final Carried 20 | 6 17 20 20 19 Class Distribution -------------------- 100% | Mutant Dominant Class ---------------- Mutant | -10/Materials Mutant | -10/Mines Mutant | -10/Exiles Mutant | -9/Mines Resources | -11 -10 -10 -10 -9 ----------- Run | Yrd Mat Min Exi Min Matter Collected 883 | 239 379 162 . 103 Remotely . | . . . . . Salvage Created 583 | . 439 95 . 49 Parts 48 | . 39 5 . 4 Haulers Intercepted . | . . . . . Recyclers Shooed 1 | . 1 . . . Parts Field Recycled . | . . . . . Retrieved Matter . | . . . . . Parts Self-Destructed . | . . . . . Prevented . | . . . . . Kills | -11 -10 -10 -10 -9 ------- Run | Yrd Mat Min Exi Min Combat Hostiles Destroyed 19 | . 13 5 . 1 Guns 6 | . 4 1 . 1 Cannons 13 | . 9 4 . . Classes Destroyed 6 | . 5 . . 1 Worker 1 | . 1 . . . Operator 1 | . 1 . . . Watcher 3 | . 3 . . . Swarmer 12 | . 9 3 . . Grunt 6 | . 4 2 . . Demolisher 1 | . . . . 1 Best Kill Streak 5 | . 5 3 . 1 Combat Bots Only 3 | . 3 3 . 1 Max Kills in Single Turn 1 | . 1 1 . 1 Gunslinging . | . . . . . Exploded . | . . . . . Melee . | . . . . . Uniques/NPCs Destroyed . | . . . . . Combat | -11 -10 -10 -10 -9 -------- Run | Yrd Mat Min Exi Min Hostile Shots Fired 122 | . 87 20 . 15 Missed 25 | . 18 6 . 1 Damage Taken 1325 | . 637 182 . 506 Core 294 | . 59 68 . 167 Absorbed by Shields . | . . . . . Core Remaining (%) 100 | 100 . . . . Volleys Fired 89 | . 70 8 . 11 Largest 2 | . 2 2 . 2 Hottest 120 | . 120 55 . 55 Shots Fired 154 | . 116 16 . 22 Gun 48 | . 29 8 . 11 Cannon 98 | . 87 8 . 3 Launcher 8 | . . . . 8 Special . | . . . . . Kinetic 32 | . 2 16 . 14 Thermal 86 | . 86 . . . Explosive 8 | . . . . 8 Electromagnetic 28 | . 28 . . . Robot Hit Streak 6 | . 5 5 . 6 Robot Miss Streak 5 | . 5 3 . 5 Penetration Max . | . . . . . Secondary Targets . | . . . . . Shots Hit Robots 60 | . 39 9 . 12 Core Hits 35 | . 19 8 . 8 Critical Kills . | . . . . . Critical Parts Destroyed . | . . . . . Critical Strikes . | . . . . . Melee Attacks 5 | . 5 . . . Impact 5 | . 5 . . . Slashing . | . . . . . Piercing . | . . . . . Sneak Attacks . | . . . . . Combat Hostiles . | . . . . . Follow-up Attacks . | . . . . . Damage Inflicted 957 | . 704 142 . 111 Guns 254 | . 163 36 . 55 Cannons 647 | . 541 106 . . Explosions 56 | . . . . 56 Melee . | . . . . . Ramming . | . . . . . Kinetic 197 | . . 142 . 55 Thermal 541 | . 541 . . . Explosive 56 | . . . . 56 Electromagnetic 163 | . 163 . . . Impact . | . . . . . Slashing . | . . . . . Piercing . | . . . . . Highest Corruption . | . . . . . Average Corruption . | . . . . . Corruption Purged . | . . . . . Corruption Blocked . | . . . . . Overload Shots . | . . . . . Overflow Damage 15 | . 12 . . 3 Projectiles 12 | . 12 . . . Explosions 3 | . . . . 3 Melee . | . . . . . Knockbacks 1 | . . 1 . . Impact . | . . . . . Kinetic 1 | . . 1 . . Secondary . | . . . . . Self-Inflicted Damage . | . . . . . Shots . | . . . . . Rammed . | . . . . . Targets Rammed . | . . . . . Kicked . | . . . . . Crushed . | . . . . . Highest Temperature 575 | . 575 32 . 19 Average Temperature 131 | . 146 14 . 7 Received Heat Transfer 204 | . 150 54 . . Effects 15 | . 15 . . . Shutdowns 3 | . 3 . . . Energy Bleed 2 | . 2 . . . Interference 1 | . 1 . . . Matter Decay 3 | . 3 . . . Short Circuit 4 | . 4 . . . Damage (minor) 1 | . 1 . . . Damage (major) 1 | . 1 . . . Siege Activations . | . . . . . Robots Corrupted . | . . . . . Combat Hostiles . | . . . . . Parts Fried . | . . . . . Impact Corruptions . | . . . . . Robots Melted . | . . . . . Combat Hostiles . | . . . . . Parts Melted 1 | . 1 . . . Heat Transferred 1147 | . 1147 . . . Parts Sabotaged . | . . . . . Parts Stolen . | . . . . . Parts Stripped . | . . . . . Power Chain Reactions . | . . . . . Alert | -11 -10 -10 -10 -9 ------- Run | Yrd Mat Min Exi Min Peak Influence 154 | . 154 70 . 54 Initial 11 | . . 11 . . Average 36 | . 54 11 . 6 Maximum Alert Level . | . . . . . Low Security (%) 100 | 100 100 100 . 100 Level 1 . | . . . . . Level 2 . | . . . . . Level 3 . | . . . . . Level 4 . | . . . . . Level 5 . | . . . . . High Security . | . . . . . Max Security . | . . . . . Squads Dispatched 1 | . 1 . . . Investigation . | . . . . . Extermination . | . . . . . Reinforcement 1 | . 1 . . . Assault . | . . . . . Garrison . | . . . . . Intercept . | . . . . . Searches Triggered . | . . . . . Construction Impeded . | . . . . . Haulers Reinforced . | . . . . . Active Scanning Responses . | . . . . . Cargo Convoy Interrupts . | . . . . . Stealth | -11 -10 -10 -10 -9 --------- Run | Yrd Mat Min Exi Min Distress Signals 1 | . 1 . . . Communications Jammed . | . . . . . Distress Signals . | . . . . . Times Spotted 30 | . 21 5 . 4 Peak Tracking Total 3 | . 3 3 . 3 Tactical Retreats 1 | . 1 . . . Traps | -11 -10 -10 -10 -9 ------- Run | Yrd Mat Min Exi Min Traps Triggered 2 | . 1 1 . . Indirectly . | . . . . . Trap Hack Attempts . | . . . . . Triggered . | . . . . . Disarmed . | . . . . . Reprogrammed . | . . . . . Reused . | . . . . . Traps Extracted . | . . . . . Installed . | . . . . . Triggered . | . . . . . Machines | -11 -10 -10 -10 -9 ---------- Run | Yrd Mat Min Exi Min Machines Disabled . | . . . . . Max in Single Turn . | . . . . . Machines Repaired . | . . . . . Machines Dismantled . | . . . . . Machines Sabotaged . | . . . . . Overloaded Fab Kills . | . . . . . Hacking | -11 -10 -10 -10 -9 --------- Run | Yrd Mat Min Exi Min Machines Accessed 9 | . 6 2 1 . Terminals 7 | . 6 1 . . Fabricators . | . . . . . Repair Stations . | . . . . . Recycling Units . | . . . . . Scanalyzers . | . . . . . Garrison Access . | . . . . . Total Hacks 16 | . 12 3 1 . Successful 7 | . 4 2 1 . Failed 9 | . 8 1 . . Catastrophic 3 | . 3 . . . Database Lockouts . | . . . . . Manual 3 | . 2 . 1 . Terminals 14 | . 12 2 . . Fabricators . | . . . . . Repair Stations . | . . . . . Recycling Units . | . . . . . Scanalyzers . | . . . . . Garrison Access . | . . . . . Terminal Hacks 7 | . 4 2 1 . Open Door 1 | . . 1 . . Maintenance Status 1 | . 1 . . . Transport Status 1 | . 1 . . . Registered Components 1 | . 1 . . . Zone Layout 2 | . 1 1 . . Derelict Proto ID Bank 1 | . . . 1 . Fabricator Hacks . | . . . . . Repair Station Hacks . | . . . . . Recycling Unit Hacks . | . . . . . Scanalyzer . | . . . . . Garrison Access Hacks . | . . . . . Unauthorized Hacks . | . . . . . Terminals . | . . . . . Fabricators . | . . . . . Repair Stations . | . . . . . Recycling Units . | . . . . . Scanalyzers . | . . . . . Garrison Access . | . . . . . Data Cores Recovered . | . . . . . Used . | . . . . . Hacking Detections 7 | . 6 1 . . Full Trace Events 1 | . 1 . . . Feedback Events . | . . . . . Feedback Blocked . | . . . . . Robot Schematics Acquired . | . . . . . Robots Built . | . . . . . Authchips . | . . . . . Time . | . . . . . Total Robot Build Rating . | . . . . . Part Schematics Acquired . | . . . . . Parts Built . | . . . . . Authchips . | . . . . . Time . | . . . . . Total Part Build Rating . | . . . . . Parts Repaired . | . . . . . Time . | . . . . . Parts Recycled . | . . . . . Recycled Matter . | . . . . . Retrieved Matter . | . . . . . Retrieved Components . | . . . . . Parts Scanalyzed . | . . . . . Part Schematics Acquired . | . . . . . Parts Damaged . | . . . . . Bothacking | -11 -10 -10 -10 -9 ------------ Run | Yrd Mat Min Exi Min Used RIF Installer . | . . . . . Robots Hacked . | . . . . . Non-combat . | . . . . . Combat . | . . . . . Robot Hacks Applied . | . . . . . Relay Couplers Released . | . . . . . Fabnet Peak Effective % . | . . . . . Robots Rewired . | . . . . . Allies Hacked . | . . . . . Hacks Repelled . | . . . . . Allies | -11 -10 -10 -10 -9 -------- Run | Yrd Mat Min Exi Min Total Allies . | . . . . . Largest Group . | . . . . . Highest-Rated Group . | . . . . . Highest-Rated Ally . | . . . . . Total Orders . | . . . . . Ally Attacks . | . . . . . Total Damage . | . . . . . Kills . | . . . . . Allies Corrupted . | . . . . . Allies Melted . | . . . . . Intel | -11 -10 -10 -10 -9 ------- Run | Yrd Mat Min Exi Min Robot Analysis Total . | . . . . . Derelict Logs Recovered 2 | . . 2 . . Drone Launches . | . . . . . Drone Recoveries . | . . . . . Exploration | -11 -10 -10 -10 -9 ------------- Run | Yrd Mat Min Exi Min Turns Passed 4227 | 98 2143 1209 578 199 Spaces Moved 1679 | 53 791 506 257 72 Core 5 | 5 . . . . Treads 1674 | 48 791 506 257 72 Legs . | . . . . . Wheels . | . . . . . Hover . | . . . . . Flight . | . . . . . Fastest Speed 50 | 50 160 225 225 225 Average Speed 227 | 149 234 226 225 225 Slowest Speed 240 | 160 240 240 225 225 Overloaded Moves . | . . . . . Propulsion Burnouts . | . . . . . Robots Hopped . | . . . . . Cave-ins Triggered . | . . . . . Exploration Rate (%) 55 | 5 89 98 65 21 Regions Visited 4 Branch Regions 3 Pre-discovered Areas 1 | . . 1 . . Known Exits Taken . | . . . . . Unknown Exits Taken 4 | 1 1 1 1 . Scrap Searched 3 | . . 1 . 2 Spaces Dug 4 | . 4 . . . Terrain Destroyed 58 | . 4 . . 54 Melee 4 | . 4 . . . Projectile . | . . . . . AOE 54 | . . . . 54 Terrain Rammed . | . . . . . Walls Destroyed . | . . . . . Machines Disabled . | . . . . . Actions | -11 -10 -10 -10 -9 --------- Run | Yrd Mat Min Exi Min Total 1926 | 72 950 555 258 91 Wait 57 | . 24 29 . 4 Move 1675 | 52 790 505 256 72 Hop . | . . . . . Pick Up 43 | 12 24 5 1 1 Fast Attach 2 | . 2 . . . Attach 12 | 7 3 1 . 1 Detach 2 | 1 . 1 . . Swap 22 | . 18 3 . 1 Drop 19 | . 14 3 1 1 Fire 89 | . 70 8 . 11 Melee 5 | . 5 . . . Ram . | . . . . . Kick . | . . . . . Crush . | . . . . . Escape Stasis . | . . . . . Rewire . | . . . . . Trap . | . . . . . Miscellaneous . | . . . . . Route ------- -11/Scrapyard -10/Materials (discovered 5 exits: [*Mat x3] / *Min x2) -10/Mines (discovered 3 exits: [*Mat x2] / *Exi) -10/Exiles (discovered 2 exits: [*Min x2]) -9/Mines History --------- Turn | Location | Event 2 | -11/Scrapyard | Met Revision 17 29 | -11/Scrapyard | Discovered new exit (range 14) 99 | -11/Scrapyard | Entered Materials 304 | -10/Materials | Build established: Mutant 325 | -10/Materials | Discovered new exit (range 16) 807 | -10/Materials | Discovered new exit (range 12) 1396 | -10/Materials | Discovered new exit (range 4) 1786 | -10/Materials | Discovered new exit (range 18) 1865 | -10/Materials | Discovered new exit (range 13) 2242 | -10/Materials | Entered Mines 2359 | -10/Mines | Met a Derelict who couldn't figure out how to use a Trap Extractor 2669 | -10/Mines | Discovered new exit (range 8) 2672 | -10/Mines | Learned location of Zion (-6) 2917 | -10/Mines | Core integrity fell below 50% 2977 | -10/Mines | Deemed a non-threat by the Exiles lab entrance 2977 | -10/Mines | Discovered new exit (range 5) 3045 | -10/Mines | Discovered new exit (range 11) 3180 | -10/Mines | Learned location of 1 exit from Materials 3451 | -10/Mines | Entered Exiles 3487 | -10/Exiles | Discovered new exit (range 15) 3526 | -10/Exiles | Met 8R-AWN 3562 | -10/Exiles | Met EX-HEX 3627 | -10/Exiles | Met EX-BIN 3674 | -10/Exiles | Aligned with FarCom system 3676 | -10/Exiles | Given EX-Vault access code 3742 | -10/Exiles | Opened EX-Vault 3771 | -10/Exiles | Found Longsword +1 3817 | -10/Exiles | Warned to stay clear of 0b10 Research branches 3874 | -10/Exiles | Met EX-DEC 4002 | -10/Exiles | Discovered new exit (range 12) 4029 | -10/Exiles | Left Exiles lab with Longsword +1 4029 | -10/Exiles | Entered Mines 4092 | -9/Mines | Received a Rocket Launcher from a helpful Derelict 4153 | -9/Mines | Assembled infested the area 4212 | -9/Mines | Core integrity fell below 20% 4228 | -9/Mines | Destroyed by D-53 Grenadier with Mini Grenade Launcher Last Messages --------------- Found Visual Processing Unit. Found EM Shotgun. Found Heat Sink. Found Com. Wheel. Found 69 Matter. Acquired 37 matter. Acquired 8 matter. D-53 Grenadier destroyed. The unstable cave ceiling collapses. Lgt. Ion Engine destroyed. The unstable cave ceiling collapses. K-01 Serf collects debris. Destroyed Shock Absorption System. The unstable cave ceiling collapses. Rocket Launcher destroyed. Adv. Treads destroyed. K-01 Serf collects debris. The unstable cave ceiling collapses. U-05 Engineer builds a Wall. The unstable cave ceiling collapses. Map ----- +----------------------------------------------------+ | ??????????????????????????????# ##??????? | | ??????????????????????????????# ##????## | | ??????????????????????????????# #??? | | ???????????????????????????????# ### | | ???????????????????????????????### ] ! | | ??????????????????????###????????## | | ?????????????????????? #??####??## ## # | | ??????????????????????# #?## #### #?? ## | | ??????????????????????# #?# #????#? | | ??????????????????????# ### #?????? | | ??????????????????????# ## #### #?????# | | ?????????????????????## ##??#### ####### | | ????????????????????## ####??????# | | ???????????????# #### ##?????????########## | | ???????????????# r#???????????????????# | | ???????????????# ##??????????????????? | | ???????????????### ### #??????????????????? | | ?????????????????#???## #??????????????????? | | ?????????????????????## k #??????????????????? | | ?????????????????????# #??????????????????? | | ??????????????????##### r #??????????????????? | | ????????######???## #u #??????????????????? | | ????? ## ## #??????????????????? | | ???? # #??????????????????? | | ???? % #??????????????????? | | ??# @ #??????????????????? | | ???# aa d! #??????????????????? | | ???# # # #??????????????????? | | ???#? ##??????????????????? | | ????? ## ##???????????????????? | | ?????? # ###??########????????????????????? | | ?????????#???#???????????????????????????????? | | ?????????????????????????????????????????????? | | ?????????????????????????????????????????????? | | ?????????????????????????????????????????????? | | ?????????????????????????????????????????????? | | ?????????????????????????????????????????????? | | ?????????????????????????????????????????????? | | ?????????????????????????????????????????????? | | ?????????????????????????????????????????????? | | ?????????????????????????????????????????????? | | ?????????????????????????????????????????????? | | ?????????????????????????????????????????????? | | ?????????????????????????????????????????????? | | ?????????????????????????????????????????????? | | ?????????????????????????????????????????????? | | ?????????????????????????????????????????????? | | ?????????????????????????????????????????????? | | ?????????????????????????????????????????????? | | ?????????????????????????????????????????????? | +----------------------------------------------------+ Best States ------------- Heat Dissipation 25 Energy Generation 10 Energy Capacity 250 Matter Stores 300 Matter Capacity 300 Sight Range 18 Terrain Scan Density 10 Evasion (%) 40 Recoil Reduction 2 Item Schematics ----------------- None Robot Schematics ------------------ None Fabricated ------------ Nothing Alien Tech Used ----------------- None Achievements -------------- None Challenges ------------ None Game ------ Seed SupersonicEnergyCloak Manual? 0 Play Time 00:25:08 Cumulative 12.2 hours Start 2025.03.14 @ 13:02:39 End 2025.03.14 @ 13:26:15 Sessions 1 Manual Loads 0 Difficulty Rogue Special Mode None Game No. 14 Rogue 14 Adventurer 0 Explorer 0 Win Type - Total 0 Types 0/0/0/0/0/0/0/0/0 Lore% 11 Gallery% 18 Achievement% 19 Wizard Run 0 Options --------- Layout 1 ASCII 0 Keyboard 0 Movement Mouse Keybinds 0 Fullscreen 1 Font 32/SmallcapsGlow Map View 50x40 Zoom Use 0% Tactical HUD 0 Map Filters NONE Filters NONE Steam 1 RUN: dfa195db-7dfa-48fe-abe9-8f0bef39010e